bitfinex/quotes_ETHUSD_20251108
["timestamp","ask_amount","ask_price","bid_price","bid_amount"]
[1762575274472,2.39457554,3464.7,3464.6,0.001]
[1762575274676,5.28082831,3464.7,3464.6,0.001]
[1762575275249,2.39457554,3464.7,3464.6,0.001]
[1762575277315,5.28082831,3464.7,3464.6,0.001]
[1762575278168,2.39457554,3464.7,3464.6,0.001]
[1762575279020,2.39457554,3464.7,3464.6,0.4989]
[1762575279170,1.55016355,3464.7,3464.6,0.9648]
[1762575280194,1.55016355,3464.7,3464.6,0.4989]
[1762575280791,1.55016355,3464.7,3464.6,0.9648]
[1762575287005,1.55016355,3464.7,3464.6,0.001]
[1762575287207,1.55016355,3464.7,3464.6,0.4653]
[1762575287406,2.39458094,3464.7,3464.6,0.4653]
[1762575287990,2.39458094,3464.7,3464.6,0.9579]
[1762575288329,2.80008494,3464.7,3464.6,0.001]
[1762575288500,2.80008494,3464.7,3464.6,0.4653]
[1762575288826,5.68633771,3464.7,3464.6,0.4653]
[1762575289705,2.80008494,3464.7,3464.6,0.4653]
[1762575289917,2.80008494,3464.7,3464.6,0.9579]
[1762575290501,2.80008494,3464.7,3464.6,0.001]
[1762575290502,5.68633771,3464.7,3464.6,0.001]
[1762575291442,2.80008494,3464.7,3464.6,0.001]
[1762575292034,5.68633771,3464.7,3464.6,0.001]
[1762575292900,2.80008494,3464.7,3464.6,0.001]
[1762575294441,5.68633771,3464.7,3464.6,0.001]
[1762575295243,2.80008494,3464.7,3464.6,0.001]
[1762575295444,5.68633771,3464.7,3464.6,0.001]
[1762575296052,5.68633771,3464.7,3464.6,0.9579]
[1762575296443,5.68633771,3464.7,3464.6,0.4653]
[1762575296626,5.68633771,3464.7,3464.6,0.9579]
[1762575298753,5.68633771,3464.7,3464.6,0.4653]
[1762575299054,5.68633771,3464.7,3464.6,0.001]
[1762575299929,2.80008494,3464.7,3464.6,0.001]
[1762575300153,5.68633771,3464.7,3464.6,0.001]
[1762575300525,2.80008494,3464.7,3464.6,0.4653]
[1762575300939,5.68633771,3464.7,3464.6,0.4653]
[1762575301226,5.68633771,3464.7,3464.6,0.001]
[1762575301448,2.39458094,3464.7,3464.6,0.9579]
[1762575301661,1.95566755,3464.7,3464.6,0.9579]
[1762575302125,4.84192032,3464.7,3464.6,0.001]
[1762575302539,1.95566755,3464.7,3464.6,0.001]
[1762575303139,4.84192032,3464.7,3464.6,0.001]
[1762575303544,8.84773369,3464.7,3464.6,0.001]
[1762575303741,10.42189743,3464.7,3464.6,0.001]
[1762575303961,10.42189743,3464.7,3464.2,0.001]
[1762575303962,3.29184008,3464.6,3464.2,0.001]
[1762575304160,3.43584008,3464.6,3464.2,0.001]
[1762575305463,7.44165345,3464.6,3464.2,0.001]
[1762575305658,3.43584008,3464.6,3464.2,0.001]
[1762575305960,5.06987246,3464.6,3464.2,0.001]
[1762575306270,9.07568583,3464.6,3464.2,0.001]
[1762575306468,5.06987246,3464.6,3464.2,0.001]
[1762575307788,2.18353638,3464.6,3464.2,0.001]
[1762575307931,4.00581337,3464.6,3464.5,0.4676]
[1762575308130,0.682,3464.6,3464.5,0.9436]
[1762575310166,0.682,3464.6,3464.5,3.83001939]
[1762575314597,0.682,3464.6,3464.5,3.85888358]
[1762575314759,0.682,3464.6,3464.5,4.53352351]
[1762575315901,0.002,3465.2,3465.1,2.88591959]
[1762575316054,0.684,3465.2,3465.1,3.53761959]
[1762575316256,0.684,3465.2,3465.1,4.04247878]
[1762575316493,0.684,3465.2,3465.1,5.4141772]
[1762575320511,0.684,3465.2,3465.1,2.52825761]
[1762575320714,0.684,3465.2,3464.5,0.001]
[1762575320715,0.144,3465.1,3464.8,0.1851]
[1762575321213,0.684,3465.2,3465.0,0.4666]
[1762575321396,0.684,3465.2,3465.1,0.4666]
[1762575321912,0.684,3465.2,3464.8,0.1851]
[1762575322098,0.144,3464.9,3464.6,0.1851]
[1762575322304,0.144,3464.6,3464.5,0.001]
[1762575322507,0.681,3464.6,3464.5,0.001]
[1762575322707,1.35578134,3464.6,3464.5,0.001]
[1762575325703,0.8871,3464.6,3464.5,0.001]
[1762575325899,0.8871,3464.6,3464.5,0.4676]
[1762575326115,0.681,3464.6,3464.5,0.4676]
[1762575326292,0.681,3464.6,3464.5,0.001]
[1762575326489,0.681,3464.6,3464.5,0.4676]
[1762575326838,0.681,3464.6,3464.5,0.001]
[1762575327294,1.08447114,3464.6,3464.5,0.001]
[1762575327499,0.681,3464.6,3464.5,0.001]
[1762575329145,0.681,3464.6,3464.5,0.4676]
[1762575330757,0.681,3464.6,3464.5,0.9436]
[1762575337270,0.681,3464.6,3464.5,3.83001939]
[1762575337440,0.681,3464.6,3464.5,0.9436]
[1762575341144,0.681,3464.6,3464.5,0.9469]
[1762575343683,0.681,3464.6,3464.5,3.83331939]
[1762575343976,0.681,3464.6,3464.5,4.5082893]
[1762575344549,0.681,3464.6,3464.5,1.62186991]
[1762575344782,0.681,3464.6,3464.5,4.5082893]
[1762575345071,0.681,3464.6,3464.5,1.62186991]
[1762575345375,0.681,3464.6,3464.5,0.9469]
[1762575347971,0.681,3464.6,3464.5,3.83331939]
[1762575348155,0.002,3465.2,3464.8,2.88616912]
[1762575348350,0.002,3465.2,3464.5,0.9469]
[1762575348351,0.681,3465.1,3464.9,0.4579]
[1762575348857,0.681,3465.1,3465.0,0.451]
[1762575349263,0.681,3465.1,3465.0,0.9089]
[1762575349770,0.681,3465.1,3465.0,4.46590721]
[1762575349976,0.681,3465.1,3465.0,1.57990433]
[1762575350158,0.681,3465.1,3465.0,3.79490288]
[1762575350723,5.681,3465.1,3465.0,3.79490288]
[1762575351194,5.825,3465.1,3465.0,3.79490288]
[1762575351577,5.827,3465.1,3465.0,3.79490288]
[1762575354996,5.827,3465.1,3465.0,7.58490288]
[1762575355388,5.827,3465.1,3465.0,8.92061243]
[1762575359429,5.683,3465.1,3465.0,8.92061243]
[1762575360957,0.683,3465.1,3465.0,8.92061243]
[1762575361550,0.683,3465.1,3465.0,5.13061243]
[1762575363350,0.002,3465.1,3465.0,5.13061243]
[1762575363521,0.002,3465.1,3465.0,5.15947245]
[1762575365245,0.002,3465.1,3465.0,5.13061243]
[1762575365445,0.002,3465.3,3465.1,2.88591959]
[1762575365658,0.002,3465.3,3465.2,3.93399867]
[1762575365859,0.146,3465.8,3465.5,3.35538649]
[1762575365860,0.002,3465.8,3465.5,3.35538649]
[1762575366067,0.002,3465.8,3465.7,3.90472397]
[1762575366455,0.002,3465.8,3465.7,4.38882397]
[1762575366791,0.002,3465.8,3465.7,5.83056602]
[1762575367283,0.002,3465.8,3465.7,5.42506202]
[1762575367584,0.209,3466.5,3465.8,2.88533671]
[1762575367766,0.065,3466.5,3466.0,2.88517022]
[1762575367967,0.065,3466.5,3466.4,2.88483729]
[1762575368159,0.02,3466.9,3466.7,2.88458764]
[1762575368338,0.02,3466.9,3466.7,3.38323351]
[1762575368540,0.02,3466.9,3466.7,3.86733351]
[1762575370364,0.02,3466.9,3466.7,3.83848764]
[1762575371673,0.02,3466.9,3466.4,0.93100564]
[1762575371848,0.02,3466.9,3465.7,1.44174205]
[1762575372054,0.02,3466.9,3466.1,0.6695]
[1762575372249,0.02,3466.9,3466.4,2.88479864]
[1762575373099,0.02,3466.9,3466.1,3.5545834]
[1762575373405,0.02,3466.9,3465.7,1.44174205]
[1762575373561,0.02,3466.9,3466.2,2.88500246]
[1762575374395,0.02,3466.9,3465.8,0.4841]
[1762575374587,0.68,3466.7,3465.8,0.4841]
[1762575374788,0.68,3466.7,3466.2,2.88494878]
[1762575375160,0.68,3466.7,3466.4,2.8848324]
[1762575375367,0.68,3466.7,3465.8,0.4841]
[1762575375577,0.68,3466.7,3466.2,2.88498938]
[1762575375777,0.68,3466.7,3466.3,2.88491397]
[1762575375964,0.68,3466.7,3466.1,2.88505873]
[1762575376177,0.68,3466.7,3466.3,2.88486427]
[1762575376499,0.68,3466.7,3466.0,2.88517022]
[1762575376824,0.68,3466.7,3466.3,2.88491473]
[1762575377103,0.68,3466.7,3465.9,2.88518188]
[1762575377400,0.68,3466.7,3465.8,3.22228823]
[1762575377584,1.03883479,3466.7,3465.6,0.4841]
[1762575377762,0.68,3466.7,3466.0,2.88515285]
[1762575377969,0.144,3465.9,3465.8,2.88533671]
[1762575378794,0.824,3465.9,3465.8,2.88533671]
[1762575379703,0.824,3465.9,3465.6,2.88549189]
[1762575379704,0.824,3465.9,3465.6,2.88544768]
[1762575379868,0.144,3465.6,3465.5,2.88558649]
[1762575380200,0.68,3465.9,3465.6,2.88548382]
[1762575380615,0.68,3465.9,3465.7,2.88541209]
[1762575380814,0.68,3465.9,3465.8,2.88533671]
[1762575381113,0.68,3465.9,3465.8,3.35513671]
[1762575381302,0.68,3465.9,3465.8,3.83923671]
[1762575381486,0.02,3466.9,3466.1,2.88503157]
[1762575381687,0.68,3466.7,3466.1,2.88503157]
[1762575382023,0.68,3466.7,3466.0,2.88517022]
[1762575382188,0.75911197,3466.8,3466.1,2.88503035]
[1762575382391,0.68,3466.7,3466.1,2.88503035]
[1762575382599,0.75911197,3466.8,3466.0,2.88516747]
[1762575382798,1.04655292,3466.7,3466.0,2.88516747]
[1762575383088,0.144,3466.0,3465.3,0.4841]
[1762575383420,0.144,3465.8,3465.6,2.88545296]
[1762575383612,0.68,3465.7,3465.6,2.88545296]
[1762575383797,0.144,3465.6,3465.2,3.79]
[1762575383992,0.68,3465.7,3465.5,2.88558649]
[1762575384196,0.144,3465.4,3465.3,7.41023193]
[1762575384890,0.144,3465.4,3465.3,4.52454492]
[1762575385084,0.144,3465.4,3465.3,6.67575303]
[1762575385620,0.144,3465.4,3465.3,7.14655303]
[1762575385790,0.144,3465.4,3465.3,7.63065303]
[1762575387223,0.144,3465.4,3465.3,3.84065303]
[1762575388144,0.144,3465.4,3465.3,3.35655303]
[1762575388456,0.144,3465.4,3465.3,2.88675303]
[1762575388620,0.144,3465.4,3465.3,4.8639631]
[1762575389921,0.144,3465.4,3465.3,2.88675303]
[1762575390117,0.144,3465.4,3465.3,0.001]
[1762575392355,0.144,3465.4,3465.3,3.84275303]
[1762575392542,0.144,3465.4,3465.3,3.35655303]
[1762575393418,0.144,3465.4,3465.3,0.001]
[1762575393639,0.144,3465.4,3465.3,2.88675303]
[1762575393951,0.144,3465.4,3465.3,0.001]
[1762575394941,0.144,3465.4,3465.3,2.88675303]
[1762575395141,0.144,3465.4,3465.3,0.001]
[1762575395872,4.55266595,3465.4,3465.3,0.001]
[1762575396034,7.9616023,3465.4,3465.3,0.001]
[1762575397557,3.29142359,3465.1,3465.0,0.001]
[1762575397754,7.97458554,3465.1,3465.0,0.001]
[1762575398981,5.08866595,3465.1,3465.0,0.001]
[1762575401734,7.97458554,3465.1,3465.0,0.001]
[1762575401938,9.40153536,3465.1,3465.0,0.001]
[1762575403690,9.40153536,3465.1,3464.5,0.001]
[1762575403691,3.29184008,3464.6,3464.5,0.001]
[1762575403900,11.97816398,3464.6,3464.5,0.001]
[1762575404210,3.29217336,3464.2,3464.1,0.021]
[1762575404511,3.29234002,3464.0,3463.9,0.001]
[1762575404692,8.71092811,3464.0,3463.9,0.001]
[1762575405706,5.82409209,3464.0,3463.9,0.001]
[1762575405865,4.40866595,3464.0,3463.9,0.001]
[1762575406064,7.29550197,3464.0,3463.9,0.001]
[1762575407600,9.53550197,3464.0,3463.9,0.001]
[1762575410720,12.97550197,3464.0,3463.9,0.001]
[1762575410918,9.00316195,3464.0,3463.9,0.001]
[1762575411133,9.68316195,3464.0,3463.9,0.001]
[1762575411427,10.08866595,3464.0,3463.9,0.001]
[1762575412030,11.38619215,3464.0,3463.9,0.001]
[1762575412598,10.30068815,3464.0,3463.9,0.001]
[1762575412794,5.0,3464.0,3463.9,0.4923]
[1762575413042,5.0,3464.0,3463.9,0.9671]
[1762575413332,5.68,3464.0,3463.9,0.9671]
[1762575413892,5.0,3464.0,3463.9,0.9671]
[1762575414211,5.68,3464.0,3463.9,0.9671]
[1762575415331,5.68,3464.0,3463.9,0.4923]
[1762575415527,5.68,3464.0,3463.9,0.9671]
[1762575416360,5.0,3464.0,3463.9,1.35271793]
[1762575416656,5.324,3464.0,3463.9,3.85401936]
[1762575417134,0.824,3464.0,3463.9,3.85401936]
[1762575418109,0.68,3464.0,3463.9,3.85401936]
[1762575419529,0.68,3464.0,3463.9,3.88288855]
[1762575419733,0.68,3464.0,3463.9,4.95347888]
[1762575420130,0.68,3464.0,3463.9,4.92460969]
[1762575420334,0.002,3465.4,3464.0,0.405504]
[1762575420499,0.002,3465.4,3465.3,3.53955303]
[1762575420699,0.002,3465.4,3465.3,4.04321056]
[1762575421022,0.002,3465.8,3465.7,2.88541997]
[1762575421338,0.002,3465.8,3465.7,3.37671997]
[1762575421637,0.002,3465.8,3465.7,3.85151997]
[1762575429351,0.002,3466.1,3465.7,3.85151997]
[1762575429352,0.002,3466.1,3466.0,2.88517022]
[1762575429536,0.146,3466.5,3466.4,2.88483729]
[1762575429537,0.002,3466.5,3466.4,2.88483729]
[1762575429844,0.002,3466.5,3466.4,3.99563729]
[1762575430943,0.144,3466.4,3466.1,2.88508698]
[1762575431150,0.144,3466.4,3466.0,0.9277856]
[1762575431347,0.144,3466.4,3466.3,3.36292052]
[1762575431532,0.144,3466.4,3466.3,0.478]
[1762575431844,0.912,3466.4,3465.4,2.88560975]
[1762575432044,0.68,3466.3,3465.1,0.144]
[1762575432231,0.144,3465.7,3465.5,2.88556439]
[1762575432409,0.144,3465.7,3465.4,3.37445723]
[1762575432615,0.144,3465.7,3465.6,3.36350323]
[1762575433046,0.144,3465.7,3465.6,3.85230323]
[1762575433744,0.144,3465.7,3465.6,3.36350323]
[1762575433947,0.144,3465.7,3465.6,4.54234344]
[1762575434245,0.144,3465.7,3465.6,1.65684021]
[1762575434452,0.144,3465.7,3465.6,3.85230323]
[1762575434950,0.144,3465.7,3465.6,0.478]
[1762575435116,0.4318,3465.7,3465.6,2.88550323]
[1762575435319,0.4318,3465.7,3465.6,3.36350323]
[1762575435320,0.144,3465.7,3465.6,3.36350323]
[1762575435725,0.144,3465.7,3465.6,0.478]
[1762575435947,0.144,3465.7,3465.6,3.36350323]
[1762575443051,5.0,3466.0,3465.9,2.88525346]
[1762575443248,5.0,3466.0,3465.9,3.36325346]
[1762575443471,5.0,3466.0,3465.9,0.478]
[1762575443770,5.0,3466.0,3465.9,3.85205346]
[1762575451793,5.0,3466.0,3465.9,2.88525346]
[1762575452018,5.2825,3466.0,3465.9,2.88525346]
[1762575452158,5.7626,3466.0,3465.2,0.6714]
[1762575452364,5.7626,3466.0,3465.9,2.88525346]
[1762575452562,5.2825,3466.0,3465.9,2.88525346]
[1762575453192,5.0,3466.0,3465.9,3.35255346]
[1762575454097,5.0,3466.0,3465.5,0.4838]
[1762575454098,0.144,3465.9,3465.5,0.4838]
[1762575454263,0.679,3465.8,3465.2,0.3266]
[1762575454465,0.679,3465.8,3465.7,2.88541997]
[1762575455610,5.0,3466.0,3465.9,2.88525346]
[1762575455809,5.679,3466.0,3465.9,3.35255346]
[1762575456609,5.0,3466.0,3465.9,4.53748333]
[1762575456810,5.679,3466.0,3465.9,4.5086308]
[1762575459295,5.9549,3466.0,3465.6,0.001]
[1762575459509,0.4866,3465.7,3465.6,2.88650323]
[1762575459712,0.4691,3465.9,3465.8,2.88533671]
[1762575460005,5.679,3466.0,3465.9,3.35255346]
[1762575460204,5.679,3466.0,3465.9,2.88525346]
[1762575460405,5.9549,3466.0,3465.7,2.88536027]
[1762575460609,5.9549,3466.0,3465.6,0.001]
[1762575460610,5.679,3466.0,3465.9,2.88525346]
[1762575461010,5.679,3466.0,3465.6,0.001]
[1762575461011,5.9549,3466.0,3465.6,0.001]
[1762575461229,5.9549,3466.0,3465.7,2.88535523]
[1762575461445,6.4415,3466.0,3465.6,0.001]
[1762575461733,0.0049,3465.7,3465.6,2.88650323]
[1762575461889,0.0049,3465.7,3465.6,0.001]
[1762575462217,0.6839,3465.7,3465.6,0.001]
[1762575462420,1.1774,3465.7,3465.6,0.001]
[1762575462630,1.1774,3465.7,3465.6,2.88650323]
[1762575462934,1.1774,3465.7,3465.6,0.001]
[1762575463938,1.81425,3465.7,3465.6,0.001]
[1762575468552,1.1774,3465.7,3465.6,0.001]
[1762575470051,4.06281997,3465.7,3465.6,0.001]
[1762575470587,1.1774,3465.7,3465.6,0.001]
[1762575473982,4.06281997,3465.7,3465.6,0.001]
[1762575474898,4.46832397,3465.7,3465.6,0.001]
[1762575475195,5.72279832,3465.7,3465.6,0.001]
[1762575477790,5.83841879,3465.7,3465.6,0.001]
[1762575478691,5.72279832,3465.7,3465.6,0.001]
[1762575480472,0.0049,3465.7,3465.6,0.001]
[1762575480672,5.0,3466.0,3465.6,0.4734]
[1762575480896,0.679,3465.9,3465.6,0.4734]
[1762575481096,5.0,3466.0,3465.6,3.83913762]
[1762575481399,5.0,3466.0,3465.9,0.4724]
[1762575481703,5.679,3466.0,3465.8,2.88532021]
[1762575481870,5.679,3466.0,3465.9,0.4724]
[1762575482276,6.452,3466.0,3465.6,0.001]
[1762575482478,0.4717,3465.7,3465.6,0.001]
[1762575482793,1.1507,3465.7,3465.6,0.001]
[1762575483114,5.0,3466.0,3465.6,0.001]
[1762575483115,5.0,3466.0,3465.8,2.88526166]
[1762575483282,0.679,3465.9,3465.8,2.88533671]
[1762575483480,0.679,3465.9,3465.8,3.5107236]
[1762575483678,0.679,3465.9,3465.8,3.9674236]
[1762575484078,0.679,3465.9,3465.8,4.4495236]
[1762575485888,5.0,3466.0,3465.9,2.88525346]
[1762575486114,5.0,3466.0,3465.9,3.82405346]
[1762575486312,5.679,3466.0,3465.9,4.55763117]
[1762575487377,0.02,3467.9,3466.1,2.88508698]
[1762575487580,0.02,3467.9,3467.8,2.88367264]
[1762575487831,0.02,3467.9,3467.8,3.34037264]
[1762575488135,0.02,3467.9,3467.8,3.82247264]
[1762575488485,0.02,3467.9,3467.8,3.85130936]
[1762575488717,0.02,3467.9,3467.8,4.4959867]
[1762575490094,0.02,3467.9,3467.8,1.13021406]
[1762575490292,0.02,3467.9,3467.8,0.4567]
[1762575490707,0.02,3467.9,3467.8,0.9388]
[1762575491314,0.02,3467.9,3467.8,0.4567]
[1762575492116,0.02,3467.9,3467.5,3.36600609]
[1762575492326,0.02,3467.9,3467.8,0.4567]
[1762575492535,0.704,3467.9,3467.8,3.72551768]
[1762575492825,0.704,3467.9,3467.8,4.20761768]
[1762575495725,0.704,3467.9,3467.8,0.84184504]
[1762575495927,0.704,3467.9,3467.8,0.4567]
[1762575496647,0.704,3467.9,3467.6,2.88381635]
[1762575496931,0.704,3467.9,3467.8,0.4567]
[1762575497343,0.704,3467.9,3467.1,0.1738]
[1762575497344,1.6304,3467.9,3466.7,0.6628]
[1762575497547,0.144,3467.3,3466.8,2.88443165]
[1762575497752,0.684,3467.2,3466.9,0.85122317]
[1762575497925,0.684,3467.2,3467.0,2.88432867]
[1762575498238,0.684,3467.2,3467.1,0.4567]
[1762575498741,0.684,3467.2,3467.1,3.82305485]
[1762575499117,0.684,3467.2,3467.1,4.49379544]
[1762575499945,0.684,3467.2,3467.1,1.12744059]
[1762575500242,0.684,3467.2,3467.1,0.4567]
[1762575500650,0.684,3467.2,3467.1,3.34095485]
[1762575500878,0.684,3467.2,3466.7,0.144]
[1762575500879,0.9306,3467.2,3466.7,0.144]
[1762575501036,0.4529,3466.8,3465.6,0.001]
[1762575501208,1.1558,3466.7,3465.6,0.4831]
[1762575501407,1.4293,3466.7,3465.7,2.88539566]
[1762575501655,3.1581728,3466.6,3465.7,3.5107966]
[1762575501826,0.4941,3466.5,3465.7,0.62540094]
[1762575502516,3.37886775,3466.5,3465.7,0.62540094]
[1762575503047,2.8848468,3466.4,3465.7,0.62540094]
[1762575503247,0.4941,3466.5,3465.7,0.62540094]
[1762575503552,3.37885915,3466.5,3465.7,0.62540094]
[1762575503754,0.4941,3466.5,3465.7,3.51081352]
[1762575504053,0.687,3466.7,3465.8,0.39939135]
[1762575504352,1.1801,3466.6,3465.8,3.2847195]
[1762575504727,4.06477909,3466.6,3465.8,3.2847195]
[1762575504928,4.06477909,3466.6,3465.8,2.88532815]
[1762575505252,2.8847626,3466.5,3465.7,1.10750094]
[1762575505550,2.8847626,3466.5,3465.8,0.001]
[1762575505752,1.1801,3466.6,3465.8,0.001]
[1762575505952,0.686,3466.5,3465.8,2.8863207]
[1762575506915,3.57075982,3466.5,3465.8,0.001]
[1762575507120,0.2484,3465.9,3465.8,0.001]
[1762575507315,0.686,3465.9,3465.8,0.001]
[1762575507541,0.9369,3465.9,3465.8,0.001]
[1762575509516,4.41075346,3465.9,3465.8,0.001]
[1762575509716,4.81625746,3465.9,3465.8,0.001]
[1762575510021,3.29092397,3465.7,3465.6,0.001]
[1762575510244,3.47202397,3465.7,3465.6,0.001]
[1762575510421,3.96612397,3465.7,3465.6,0.001]
[1762575511757,4.08173708,3465.7,3465.6,0.001]
[1762575515443,4.03173708,3465.7,3465.6,0.001]
[1762575515648,5.4807275,3465.7,3465.6,0.001]
[1762575516654,5.4807275,3465.7,3464.9,0.001]
[1762575516655,2.88600288,3465.0,3464.9,0.001]
[1762575516856,9.65669093,3465.0,3464.9,0.001]
[1762575517027,10.11759093,3465.0,3464.9,0.001]
[1762575517226,11.86251612,3465.0,3464.9,0.001]
[1762575518864,6.39723207,3465.0,3464.9,0.001]
[1762575519035,4.65230688,3465.0,3464.9,0.001]
[1762575519228,4.60230688,3465.0,3464.9,0.001]
[1762575519925,3.96730688,3465.0,3464.9,0.001]
[1762575520128,1.3605,3465.0,3464.9,0.001]
[1762575520374,4.24650288,3465.0,3464.9,0.001]
[1762575520561,4.70740288,3465.0,3464.9,0.001]
[1762575520931,4.24780288,3465.0,3464.9,0.001]
[1762575521353,4.9611739,3465.0,3464.9,0.001]
[1762575521562,10.83096195,3465.0,3464.9,0.001]
[1762575524029,4.6806779,3465.0,3464.9,0.001]
[1762575524360,4.65810688,3465.0,3464.9,0.001]
[1762575524971,2.88600288,3465.0,3464.9,0.001]
[1762575525154,3.57200288,3465.0,3464.9,0.001]
[1762575525349,0.4596,3465.1,3464.9,0.4556]
[1762575525553,0.686,3465.0,3464.9,0.4556]
[1762575526071,2.88567923,3465.4,3464.9,0.9209]
[1762575526381,0.86707332,3465.6,3465.3,0.6402]
[1762575526541,0.002,3465.7,3465.5,3.34018192]
[1762575526870,0.002,3465.7,3465.6,0.48345503]
[1762575527051,0.002,3465.7,3465.6,0.94875503]
[1762575527290,0.688,3465.7,3465.6,3.80540323]
[1762575527471,0.688,3465.7,3465.6,4.49306481]
[1762575528067,0.688,3465.7,3465.6,4.52191984]
[1762575528278,0.002,3465.7,3465.6,4.52191984]
[1762575528484,0.688,3465.7,3465.6,4.52191984]
[1762575529196,0.688,3465.7,3465.6,1.60756158]
[1762575530298,0.688,3465.7,3465.6,0.4546]
[1762575530509,0.688,3465.7,3465.6,3.80540323]
[1762575531105,0.146,3465.7,3465.6,3.80540323]
[1762575531274,0.832,3465.7,3465.6,3.80540323]
[1762575531962,0.688,3465.7,3465.6,3.80540323]
[1762575532183,0.688,3465.7,3465.6,4.49307001]
[1762575533899,0.002,3465.7,3465.6,4.49307001]
[1762575534598,0.002,3465.7,3465.6,4.52192504]
[1762575534798,0.002,3465.7,3465.6,4.49307001]
[1762575535096,0.002,3465.7,3465.6,4.52192504]
[1762575535474,0.002,3465.7,3465.6,4.49307001]
[1762575535799,0.002,3465.7,3465.6,4.52192504]
[1762575537000,0.686,3465.8,3465.7,2.88541997]
[1762575537168,0.002,3466.1,3466.0,2.88517022]
[1762575537372,0.002,3466.1,3466.0,3.36862192]
[1762575537569,0.002,3466.1,3466.0,3.83392192]
[1762575538004,0.002,3466.1,3466.0,3.80507022]
[1762575539774,0.002,3466.1,3466.0,7.59507022]
[1762575540008,0.002,3466.1,3466.0,9.07246026]
[1762575540469,0.002,3466.1,3466.0,5.26739004]
[1762575540667,0.002,3466.1,3466.0,7.12977022]
[1762575541290,0.002,3466.1,3466.0,7.59507022]
[1762575541694,0.279,3466.1,3466.0,3.79]
[1762575541893,0.279,3466.1,3465.5,0.4653]
[1762575542108,0.0046,3465.6,3465.1,0.4653]
[1762575542319,0.564,3465.5,3465.4,2.88566976]
[1762575542813,0.564,3465.5,3465.4,3.37346976]
[1762575543192,0.564,3465.5,3465.4,0.4878]
[1762575543389,0.564,3465.5,3465.4,2.88566976]
[1762575543925,0.564,3465.5,3465.4,3.37346976]
[1762575544722,0.564,3465.5,3465.0,0.001]
[1762575544723,0.144,3465.4,3465.0,0.001]
[1762575544902,0.144,3465.2,3465.1,2.88584454]
[1762575545298,0.144,3465.2,3465.1,3.37364454]
[1762575546534,0.144,3465.2,3465.0,0.001]
[1762575546535,0.8844,3465.2,3465.0,0.001]
[1762575546741,0.564,3465.5,3465.0,0.001]
[1762575546890,0.564,3465.5,3465.2,2.88583631]
[1762575547399,0.564,3465.5,3465.1,1.1502]
[1762575547400,0.564,3465.5,3465.1,3.08391643]
[1762575547604,0.564,3465.5,3465.2,2.88577808]
[1762575547806,0.1856,3465.9,3465.2,2.88577808]
[1762575548004,0.144,3465.2,3465.0,0.001]
[1762575548306,0.9682,3465.1,3465.0,0.001]
[1762575548506,1.4264,3465.1,3465.0,0.001]
[1762575549517,0.9682,3465.1,3465.0,0.001]
[1762575550090,1.4264,3465.1,3465.0,0.001]
[1762575550537,0.9682,3465.1,3465.0,0.001]
[1762575551031,0.686,3465.1,3465.0,0.001]
[1762575551515,0.9682,3465.1,3465.0,0.001]
[1762575552094,0.686,3465.1,3465.0,0.001]
[1762575552720,0.685,3465.1,3465.0,3.83920288]
[1762575552915,0.685,3465.1,3465.0,4.51183896]
[1762575554702,0.685,3465.1,3465.0,1.16143608]
[1762575554898,1.4254,3465.1,3465.0,0.001]
[1762575555401,4.31131959,3465.1,3465.0,0.001]
[1762575555801,4.71682359,3465.1,3465.0,0.001]
[1762575559475,4.83246846,3465.1,3465.0,0.001]
[1762575559840,1.145904,3465.1,3465.0,0.001]
[1762575560042,4.71682359,3465.1,3465.0,0.001]
[1762575560257,5.47708817,3465.1,3465.0,0.001]
[1762575565706,5.59272869,3465.1,3465.0,0.001]
[1762575566078,5.47708817,3465.1,3465.0,0.001]
[1762575566964,5.59272869,3465.1,3465.0,0.001]
[1762575567167,5.47708817,3465.1,3465.0,0.001]
[1762575567378,5.59272869,3465.1,3465.0,0.001]
[1762575567778,5.47708817,3465.1,3465.0,0.001]
[1762575568206,4.79208817,3465.1,3465.0,0.001]
[1762575568406,3.16811959,3465.1,3465.0,0.001]
[1762575568608,3.96776011,3465.1,3465.0,0.001]
[1762575568798,0.9662,3465.1,3465.0,0.001]
[1762575569172,3.85211959,3465.1,3465.0,0.001]
[1762575571013,0.4582,3465.5,3465.0,0.001]
[1762575571222,0.684,3465.4,3465.0,0.4888]
[1762575571606,2.88576289,3465.3,3465.0,0.4888]
[1762575571978,2.88583635,3465.2,3465.0,0.4888]
[1762575572178,0.684,3465.1,3465.0,0.4888]
[1762575572481,0.684,3465.1,3465.0,0.001]
[1762575572692,0.684,3465.1,3465.0,0.4831]
[1762575573688,4.95587251,3465.1,3465.0,0.001]
[1762575573908,4.31031959,3465.1,3465.0,0.001]
[1762575574726,4.71582359,3465.1,3465.0,0.001]
[1762575575228,4.83146846,3465.1,3465.0,0.001]
[1762575583206,5.28415794,3465.1,3465.0,0.001]
[1762575583402,6.10115637,3465.1,3465.0,0.001]
[1762575585217,5.64846689,3465.1,3465.0,0.001]
[1762575588914,5.19206689,3465.1,3465.0,0.001]
[1762575589137,0.002,3465.7,3465.0,0.9596]